[Event "Early-Titled-Tuesday-Blitz-December-26-2023"]
[Site "Chess.com"]
[Date "2023.12.26"]
[Round "11"]
[White "Yeritsyaan"]
[Black "Herzog2012"]
[Result "1-0"]
[WhiteElo "2654"]
[BlackElo "2552"]
[TimeControl "180+1"]
[EndTime "10:05:04 PST"]
[Termination "Yeritsyaan won on time"]

1. Nf3 {[%clk 0:02:54.6]} 1... Nf6 {[%clk 0:02:59.7]} 2. c4 {[%clk 0:02:52.7]}
2... e6 {[%clk 0:02:57.7]} 3. b3 {[%clk 0:02:52.3]} 3... Be7 {[%clk 0:02:56]} 4.
Bb2 {[%clk 0:02:52.6]} 4... O-O {[%clk 0:02:56.6]} 5. e3 {[%clk 0:02:53.3]} 5...
d5 {[%clk 0:02:55.5]} 6. Be2 {[%clk 0:02:54]} 6... c5 {[%clk 0:02:54.9]} 7. cxd5
{[%clk 0:02:52.9]} 7... Nxd5 {[%clk 0:02:50.2]} 8. O-O {[%clk 0:02:52]} 8... Nc6
{[%clk 0:02:50.1]} 9. d3 {[%clk 0:02:51.5]} 9... b6 {[%clk 0:02:49.2]} 10. a3
{[%clk 0:02:50.6]} 10... Bb7 {[%clk 0:02:48.4]} 11. Nbd2 {[%clk 0:02:46.4]}
11... Bf6 {[%clk 0:02:43.8]} 12. Qc2 {[%clk 0:02:45]} 12... Bxb2 {[%clk
0:02:39.9]} 13. Qxb2 {[%clk 0:02:45.9]} 13... Qe7 {[%clk 0:02:26.8]} 14. Rac1
{[%clk 0:02:42.3]} 14... Rfd8 {[%clk 0:02:24.7]} 15. Rfe1 {[%clk 0:02:42.8]}
15... Rac8 {[%clk 0:02:23.5]} 16. Bf1 {[%clk 0:02:43.2]} 16... e5 {[%clk
0:02:18]} 17. g3 {[%clk 0:02:27.7]} 17... Nf6 {[%clk 0:02:11.6]} 18. Nc4 {[%clk
0:02:20.6]} 18... Re8 {[%clk 0:01:26.3]} 19. Bg2 {[%clk 0:02:16.9]} 19... Qc7
{[%clk 0:01:21.5]} 20. b4 {[%clk 0:02:11.2]} 20... Nd7 {[%clk 0:01:08.4]} 21. b5
{[%clk 0:02:05.5]} 21... Nd8 {[%clk 0:00:54.2]} 22. a4 {[%clk 0:02:00.5]} 22...
f6 {[%clk 0:00:34]} 23. d4 {[%clk 0:01:47.9]} 23... e4 {[%clk 0:00:20.7]} 24.
Nh4 {[%clk 0:01:44.1]} 24... Ne6 {[%clk 0:00:17.2]} 25. Nf5 {[%clk 0:01:42.6]}
25... Bd5 {[%clk 0:00:07.1]} 26. Ncd6 {[%clk 0:01:41.2]} 26... g6 {[%clk
0:00:07]} 27. Nxe8 {[%clk 0:01:41.1]} 27... Rxe8 {[%clk 0:00:06.8]} 28. dxc5
{[%clk 0:01:41.4]} 28... gxf5 {[%clk 0:00:06.3]} 29. Red1 {[%clk 0:01:29.3]}
29... Ndxc5 {[%clk 0:00:02.2]} 30. Rxd5 {[%clk 0:01:28.1]} 30... Rd8 {[%clk
0:00:02]} 31. Rxd8+ {[%clk 0:01:25.5]} 31... Qxd8 {[%clk 0:00:02.9]} 32. Bf1
{[%clk 0:01:24.9]} 32... Qd6 {[%clk 0:00:02.2]} 33. Bc4 {[%clk 0:01:24.6]} 33...
Kg7 {[%clk 0:00:01.9]} 34. Qc2 {[%clk 0:01:19.2]} 34... Ng5 {[%clk 0:00:02.3]}
35. Kg2 {[%clk 0:01:16.7]} 35... Qd7 {[%clk 0:00:02.1]} 36. Rd1 {[%clk
0:01:12.9]} 36... Qc8 {[%clk 0:00:02.1]} 37. h4 {[%clk 0:01:10.7]} 37... Nf3
{[%clk 0:00:02.5]} 38. Be2 {[%clk 0:01:11.4]} 38... Ne5 {[%clk 0:00:02.5]} 39.
Rd6 {[%clk 0:01:04.2]} 39... Kg6 {[%clk 0:00:02]} 40. Qc3 {[%clk 0:01:02.1]}
40... Qf8 {[%clk 0:00:02.3]} 41. Qxe5 {[%clk 0:01:01.2]} 1-0

[Event "Early-Titled-Tuesday-Blitz-December-26-2023"]
[Site "Chess.com"]
[Date "2023.12.26"]
[Round "11"]
[White "stratacticos"]
[Black "GMJustin"]
[Result "0-1"]
[WhiteElo "1870"]
[BlackElo "2243"]
[TimeControl "180+1"]
[EndTime "10:05:05 PST"]
[Termination "GMJustin won on time"]

1. e4 {[%clk 0:03:00]} 1... c5 {[%clk 0:02:46.2]} 2. Nf3 {[%clk 0:02:55.9]} 2...
e6 {[%clk 0:02:46.3]} 3. c3 {[%clk 0:02:54.1]} 3... d5 {[%clk 0:02:43.8]} 4.
exd5 {[%clk 0:02:53.9]} 4... exd5 {[%clk 0:02:43.9]} 5. d4 {[%clk 0:02:54.8]}
5... Nc6 {[%clk 0:02:38.6]} 6. Bb5 {[%clk 0:02:48.3]} 6... Bd6 {[%clk
0:02:34.5]} 7. dxc5 {[%clk 0:02:46.8]} 7... Bxc5 {[%clk 0:02:34.5]} 8. O-O
{[%clk 0:02:40.6]} 8... Ne7 {[%clk 0:02:34.6]} 9. b4 {[%clk 0:02:36.6]} 9... Bd6
{[%clk 0:02:29]} 10. Bd3 {[%clk 0:02:26.7]} 10... O-O {[%clk 0:02:25.6]} 11. h3
{[%clk 0:02:13.8]} 11... Bf5 {[%clk 0:02:23.2]} 12. Qc2 {[%clk 0:02:08.8]} 12...
Bxd3 {[%clk 0:02:13.3]} 13. Qxd3 {[%clk 0:02:08.5]} 13... Rc8 {[%clk 0:02:13.9]}
14. Na3 {[%clk 0:02:01.6]} 14... Ne5 {[%clk 0:02:07.7]} 15. Nxe5 {[%clk
0:02:00.8]} 15... Bxe5 {[%clk 0:02:07.9]} 16. Bd2 {[%clk 0:02:01.5]} 16... Qd7
{[%clk 0:02:04.2]} 17. Rfe1 {[%clk 0:01:53.6]} 17... Bf6 {[%clk 0:01:55.2]} 18.
Nb5 {[%clk 0:01:44.1]} 18... Nc6 {[%clk 0:01:54.2]} 19. Bf4 {[%clk 0:01:41.5]}
19... d4 {[%clk 0:01:21.5]} 20. Nxd4 {[%clk 0:01:40.4]} 20... Bxd4 {[%clk
0:01:07.7]} 21. cxd4 {[%clk 0:01:32.3]} 21... Nxb4 {[%clk 0:01:06.5]} 22. Qb3
{[%clk 0:01:09.2]} 22... Nc2 {[%clk 0:01:04.4]} 23. Rad1 {[%clk 0:00:48.7]}
23... Nxe1 {[%clk 0:01:03.2]} 24. Rxe1 {[%clk 0:00:46.7]} 24... Qxd4 {[%clk
0:00:59.4]} 25. Be5 {[%clk 0:00:44.2]} 25... Qd2 {[%clk 0:00:52.1]} 26. Re3
{[%clk 0:00:33.4]} 26... Rc1+ {[%clk 0:00:48.6]} 27. Kh2 {[%clk 0:00:30.5]}
27... Qxf2 {[%clk 0:00:43.1]} 28. Rf3 {[%clk 0:00:14]} 28... Qg1+ {[%clk
0:00:32.8]} 29. Kg3 {[%clk 0:00:13.9]} 29... Qc5 {[%clk 0:00:29.9]} 30. Qe3
{[%clk 0:00:08.3]} 30... Qxe3 {[%clk 0:00:28.8]} 31. Rxe3 {[%clk 0:00:07]} 31...
Re8 {[%clk 0:00:28.2]} 0-1

[Event "Early-Titled-Tuesday-Blitz-December-26-2023"]
[Site "Chess.com"]
[Date "2023.12.26"]
[Round "11"]
[White "SCIM"]
[Black "Zavgorodniy_Sergiy"]
[Result "0-1"]
[WhiteElo "2519"]
[BlackElo "2624"]
[TimeControl "180+1"]
[EndTime "10:05:06 PST"]
[Termination "Zavgorodniy_Sergiy won by resignation"]

1. e4 {[%clk 0:03:00.9]} 1... c6 {[%clk 0:02:58.2]} 2. d4 {[%clk 0:02:58.4]}
2... d5 {[%clk 0:02:59.1]} 3. e5 {[%clk 0:02:58]} 3... Bf5 {[%clk 0:02:58.9]} 4.
Nc3 {[%clk 0:02:57.5]} 4... e6 {[%clk 0:02:59]} 5. g4 {[%clk 0:02:57.2]} 5...
Bg6 {[%clk 0:02:59.5]} 6. Nge2 {[%clk 0:02:57.6]} 6... c5 {[%clk 0:02:59.9]} 7.
h4 {[%clk 0:02:48.5]} 7... cxd4 {[%clk 0:02:59.1]} 8. Nxd4 {[%clk 0:02:46]} 8...
h5 {[%clk 0:02:59.3]} 9. g5 {[%clk 0:02:23.8]} 9... Ne7 {[%clk 0:02:56.4]} 10.
Bd3 {[%clk 0:02:12.5]} 10... Bxd3 {[%clk 0:02:56]} 11. Qxd3 {[%clk 0:02:11.3]}
11... g6 {[%clk 0:02:53.6]} 12. Ncb5 {[%clk 0:01:59.7]} 12... Nec6 {[%clk
0:02:41.6]} 13. Bf4 {[%clk 0:01:55.9]} 13... Nxd4 {[%clk 0:02:34.4]} 14. Nxd4
{[%clk 0:01:54.6]} 14... Qd7 {[%clk 0:02:30.6]} 15. O-O-O {[%clk 0:01:51.9]}
15... Nc6 {[%clk 0:02:27.3]} 16. Kb1 {[%clk 0:01:49.8]} 16... Rc8 {[%clk
0:02:24.8]} 17. Nb5 {[%clk 0:01:39.8]} 17... Nb4 {[%clk 0:02:12.8]} 18. Qf1
{[%clk 0:01:39.7]} 18... a6 {[%clk 0:01:44.2]} 19. Nc3 {[%clk 0:01:22.7]} 19...
Qc7 {[%clk 0:01:03.4]} 20. a3 {[%clk 0:01:13.7]} 20... Nc6 {[%clk 0:00:58.1]}
21. Qe2 {[%clk 0:00:48.5]} 21... Bg7 {[%clk 0:00:49.7]} 22. Rhe1 {[%clk
0:00:37.3]} 22... O-O {[%clk 0:00:48.9]} 23. Bg3 {[%clk 0:00:37.4]} 23... Ne7
{[%clk 0:00:40.1]} 24. f4 {[%clk 0:00:32]} 24... Nf5 {[%clk 0:00:37.8]} 25. Bf2
{[%clk 0:00:32.6]} 25... b5 {[%clk 0:00:35.9]} 26. Na2 {[%clk 0:00:30.9]} 26...
Qb7 {[%clk 0:00:31.1]} 27. Nc1 {[%clk 0:00:30.1]} 27... Rc4 {[%clk 0:00:30.4]}
28. Qf3 {[%clk 0:00:17.6]} 28... Rfc8 {[%clk 0:00:30.2]} 29. Re2 {[%clk
0:00:14.3]} 29... Bf8 {[%clk 0:00:30.4]} 30. Nb3 {[%clk 0:00:13.7]} 30... Qc7
{[%clk 0:00:28.4]} 31. Rc1 {[%clk 0:00:10.5]} 31... a5 {[%clk 0:00:22.6]} 32.
Nd4 {[%clk 0:00:10.4]} 32... Nxd4 {[%clk 0:00:19.9]} 33. Bxd4 {[%clk 0:00:10.1]}
33... Rxd4 {[%clk 0:00:20.8]} 0-1

[Event "Early-Titled-Tuesday-Blitz-December-26-2023"]
[Site "Chess.com"]
[Date "2023.12.26"]
[Round "11"]
[White "Romn69"]
[Black "Alenzer"]
[Result "1-0"]
[WhiteElo "2338"]
[BlackElo "2070"]
[TimeControl "180+1"]
[EndTime "10:05:09 PST"]
[Termination "Romn69 won by checkmate"]

1. d4 {[%clk 0:03:00.9]} 1... d5 {[%clk 0:02:59.6]} 2. Nf3 {[%clk 0:03:00.9]}
2... Nf6 {[%clk 0:02:59.4]} 3. c4 {[%clk 0:03:01.4]} 3... dxc4 {[%clk
0:02:59.7]} 4. e3 {[%clk 0:03:00.2]} 4... a6 {[%clk 0:02:55.4]} 5. Bxc4 {[%clk
0:03:00.1]} 5... e6 {[%clk 0:02:54.5]} 6. Qe2 {[%clk 0:03:00.2]} 6... b5 {[%clk
0:02:54.5]} 7. Bd3 {[%clk 0:02:58.9]} 7... Bb7 {[%clk 0:02:51.7]} 8. e4 {[%clk
0:02:51.7]} 8... Bb4+ {[%clk 0:02:50.1]} 9. Nc3 {[%clk 0:02:49.5]} 9... O-O
{[%clk 0:02:47.9]} 10. e5 {[%clk 0:02:39.8]} 10... Nfd7 {[%clk 0:02:31.9]} 11.
Bxh7+ {[%clk 0:02:18.2]} 11... Kxh7 {[%clk 0:02:11.7]} 12. Ng5+ {[%clk 0:02:18]}
12... Kg6 {[%clk 0:01:54.9]} 13. Qg4 {[%clk 0:01:31.1]} 13... f5 {[%clk
0:01:49.9]} 14. Qg3 {[%clk 0:01:28.8]} 14... Bxc3+ {[%clk 0:00:26.2]} 15. bxc3
{[%clk 0:01:29.7]} 15... f4 {[%clk 0:00:24.6]} 16. Bxf4 {[%clk 0:01:06.7]} 16...
Qe7 {[%clk 0:00:22.5]} 17. Qh4 {[%clk 0:00:12.9]} 17... Rxf4 {[%clk 0:00:20.7]}
18. Qh7+ {[%clk 0:00:12.7]} 18... Kxg5 {[%clk 0:00:20.4]} 19. h4+ {[%clk
0:00:12.8]} 19... Kg4 {[%clk 0:00:09.6]} 20. f3+ {[%clk 0:00:12.6]} 20... Rxf3
{[%clk 0:00:10]} 21. gxf3+ {[%clk 0:00:12]} 21... Kxf3 {[%clk 0:00:07.6]} 22.
Rf1+ {[%clk 0:00:11.1]} 22... Ke3 {[%clk 0:00:07.7]} 23. Qh5 {[%clk 0:00:07.4]}
23... Nxe5 {[%clk 0:00:03.2]} 24. Qe2# {[%clk 0:00:05.2]} 1-0

[Event "Early-Titled-Tuesday-Blitz-December-26-2023"]
[Site "Chess.com"]
[Date "2023.12.26"]
[Round "11"]
[White "Navyblue1"]
[Black "nitpicker"]
[Result "0-1"]
[WhiteElo "2175"]
[BlackElo "2301"]
[TimeControl "180+1"]
[EndTime "10:05:14 PST"]
[Termination "nitpicker won by checkmate"]

1. d4 {[%clk 0:03:00.9]} 1... Nf6 {[%clk 0:02:59.9]} 2. c4 {[%clk 0:03:00.9]}
2... e6 {[%clk 0:02:59.8]} 3. Nf3 {[%clk 0:03:00.1]} 3... d5 {[%clk 0:02:57.7]}
4. Nc3 {[%clk 0:02:59.7]} 4... Bb4 {[%clk 0:02:56]} 5. Qa4+ {[%clk 0:02:57.5]}
5... Nc6 {[%clk 0:02:55.2]} 6. Bd2 {[%clk 0:02:57.4]} 6... dxc4 {[%clk
0:02:45.7]} 7. Ne5 {[%clk 0:01:58.5]} 7... Nd5 {[%clk 0:01:56.4]} 8. Nxc6 {[%clk
0:01:49.9]} 8... bxc6 {[%clk 0:01:55.7]} 9. Qxc6+ {[%clk 0:01:26.9]} 9... Bd7
{[%clk 0:01:55.7]} 10. Qxc4 {[%clk 0:01:26]} 10... Rb8 {[%clk 0:01:55.7]} 11. a4
{[%clk 0:00:58.8]} 11... O-O {[%clk 0:01:44]} 12. e4 {[%clk 0:00:42.4]} 12...
Nf6 {[%clk 0:01:41.6]} 13. Bd3 {[%clk 0:00:35.4]} 13... Ba5 {[%clk 0:01:41.3]}
14. Qa2 {[%clk 0:00:21.3]} 14... Bc6 {[%clk 0:01:35.2]} 15. e5 {[%clk
0:00:19.1]} 15... Ng4 {[%clk 0:01:23.3]} 16. h3 {[%clk 0:00:16.7]} 16... Qxd4
{[%clk 0:01:22.4]} 17. Bxh7+ {[%clk 0:00:16.2]} 17... Kxh7 {[%clk 0:01:20.1]}
18. hxg4+ {[%clk 0:00:16.8]} 18... Kg8 {[%clk 0:01:20.8]} 19. Qb1 {[%clk
0:00:16.5]} 19... g6 {[%clk 0:01:19.9]} 20. Qd1 {[%clk 0:00:15.8]} 20... Bxg2
{[%clk 0:01:11.1]} 21. Rh2 {[%clk 0:00:15.7]} 21... Qxe5+ {[%clk 0:01:11.1]} 22.
Qe2 {[%clk 0:00:14.6]} 22... Qxh2 {[%clk 0:01:10.7]} 23. O-O-O {[%clk
0:00:14.4]} 23... Rfd8 {[%clk 0:01:01.3]} 24. f4 {[%clk 0:00:14.2]} 24... Qh3
{[%clk 0:00:54.8]} 25. Qf2 {[%clk 0:00:14.1]} 25... Qf3 {[%clk 0:00:51.5]} 26.
Qxf3 {[%clk 0:00:13.3]} 26... Bxf3 {[%clk 0:00:50.8]} 27. Rg1 {[%clk 0:00:14]}
27... Rd3 {[%clk 0:00:46.8]} 28. Rg3 {[%clk 0:00:13.3]} 28... Rbd8 {[%clk
0:00:44.6]} 29. Be1 {[%clk 0:00:13.9]} 29... Bb7 {[%clk 0:00:39]} 30. Rxd3
{[%clk 0:00:13.5]} 30... Rxd3 {[%clk 0:00:38.8]} 31. Bd2 {[%clk 0:00:13.7]}
31... Rg3 {[%clk 0:00:38.3]} 32. g5 {[%clk 0:00:14]} 32... Bb6 {[%clk
0:00:35.8]} 33. Kc2 {[%clk 0:00:14]} 33... Be3 {[%clk 0:00:35.6]} 34. Bxe3
{[%clk 0:00:13.1]} 34... Rxe3 {[%clk 0:00:35.6]} 35. b4 {[%clk 0:00:13.1]} 35...
Rf3 {[%clk 0:00:35.1]} 36. b5 {[%clk 0:00:13.5]} 36... Rxf4 {[%clk 0:00:34.9]}
37. a5 {[%clk 0:00:14.2]} 37... Rg4 {[%clk 0:00:34.3]} 38. a6 {[%clk 0:00:14.8]}
38... Ba8 {[%clk 0:00:34.3]} 39. Kb3 {[%clk 0:00:14.3]} 39... Rxg5 {[%clk
0:00:34.4]} 40. Kb4 {[%clk 0:00:14.4]} 40... Re5 {[%clk 0:00:32.7]} 41. Na4
{[%clk 0:00:14.1]} 41... g5 {[%clk 0:00:32.6]} 42. Nc5 {[%clk 0:00:14.4]} 42...
g4 {[%clk 0:00:31.1]} 43. Nd7 {[%clk 0:00:14.5]} 43... Re4+ {[%clk 0:00:31.2]}
44. Kc5 {[%clk 0:00:14.5]} 44... Kg7 {[%clk 0:00:30.7]} 45. Nb8 {[%clk
0:00:13.8]} 45... g3 {[%clk 0:00:30.2]} 46. Nc6 {[%clk 0:00:14.5]} 46... g2
{[%clk 0:00:29.8]} 47. Nxa7 {[%clk 0:00:14.5]} 47... g1=Q# {[%clk 0:00:29.8]}
0-1

[Event "Early-Titled-Tuesday-Blitz-December-26-2023"]
[Site "Chess.com"]
[Date "2023.12.26"]
[Round "11"]
[White "SmirnovTimofey2000"]
[Black "PawnEatingZombie"]
[Result "0-1"]
[WhiteElo "2015"]
[BlackElo "2142"]
[TimeControl "180+1"]
[EndTime "10:05:16 PST"]
[Termination "PawnEatingZombie won on time"]

1. d4 {[%clk 0:02:55.3]} 1... e6 {[%clk 0:02:59.6]} 2. Bf4 {[%clk 0:02:54.8]}
2... c5 {[%clk 0:02:58.1]} 3. e3 {[%clk 0:02:54.8]} 3... Qb6 {[%clk 0:02:58]} 4.
b3 {[%clk 0:02:49]} 4... cxd4 {[%clk 0:02:56.5]} 5. exd4 {[%clk 0:02:49.9]} 5...
Nc6 {[%clk 0:02:52.1]} 6. Nf3 {[%clk 0:02:49.4]} 6... Nf6 {[%clk 0:02:49.7]} 7.
Be2 {[%clk 0:02:38.2]} 7... Nd5 {[%clk 0:02:39.4]} 8. Bg3 {[%clk 0:02:35.8]}
8... Bb4+ {[%clk 0:02:36.5]} 9. Kf1 {[%clk 0:02:15.8]} 9... O-O {[%clk
0:02:32.6]} 10. a3 {[%clk 0:02:11.5]} 10... Be7 {[%clk 0:02:32.1]} 11. c4 {[%clk
0:01:58]} 11... Nf6 {[%clk 0:02:28.1]} 12. Nc3 {[%clk 0:01:49.4]} 12... d5
{[%clk 0:02:20.5]} 13. c5 {[%clk 0:01:35.7]} 13... Qd8 {[%clk 0:02:20.3]} 14. b4
{[%clk 0:01:34.7]} 14... Ne4 {[%clk 0:02:02.3]} 15. Qc2 {[%clk 0:01:22]} 15...
f5 {[%clk 0:01:50.7]} 16. Rd1 {[%clk 0:01:18.9]} 16... Bf6 {[%clk 0:01:48.2]}
17. Ne5 {[%clk 0:01:17.1]} 17... Bxe5 {[%clk 0:01:38.9]} 18. Bxe5 {[%clk
0:01:11.6]} 18... Nxe5 {[%clk 0:01:33.9]} 19. dxe5 {[%clk 0:01:12.1]} 19... a5
{[%clk 0:01:19.2]} 20. f4 {[%clk 0:01:08.7]} 20... axb4 {[%clk 0:01:15.9]} 21.
axb4 {[%clk 0:01:09.6]} 21... Bd7 {[%clk 0:01:10.1]} 22. Nxe4 {[%clk 0:00:53.9]}
22... fxe4 {[%clk 0:01:08.2]} 23. g3 {[%clk 0:00:54.3]} 23... Ba4 {[%clk
0:00:52.8]} 24. Qc1 {[%clk 0:00:47]} 24... Bxd1 {[%clk 0:00:52.1]} 25. Qxd1
{[%clk 0:00:47.4]} 25... Ra2 {[%clk 0:00:36.1]} 26. Rg1 {[%clk 0:00:39.1]} 26...
Qa8 {[%clk 0:00:32.4]} 27. Kf2 {[%clk 0:00:33.4]} 27... b6 {[%clk 0:00:31.3]}
28. cxb6 {[%clk 0:00:24.8]} 28... Qa6 {[%clk 0:00:20]} 29. Kf1 {[%clk
0:00:18.3]} 29... Qxb6 {[%clk 0:00:19.3]} 30. Qb1 {[%clk 0:00:17.6]} 30... Rfa8
{[%clk 0:00:18.1]} 31. Kg2 {[%clk 0:00:14.1]} 31... Rxe2+ {[%clk 0:00:17.6]} 32.
Kh1 {[%clk 0:00:11.7]} 32... Raa2 {[%clk 0:00:16.8]} 0-1

[Event "Early-Titled-Tuesday-Blitz-December-26-2023"]
[Site "Chess.com"]
[Date "2023.12.26"]
[Round "11"]
[White "TheFireChess"]
[Black "KorolDimitriy75"]
[Result "1-0"]
[WhiteElo "2524"]
[BlackElo "2376"]
[TimeControl "180+1"]
[EndTime "10:05:22 PST"]
[Termination "TheFireChess won on time"]

1. e4 {[%clk 0:03:00.9]} 1... c5 {[%clk 0:03:00.1]} 2. c3 {[%clk 0:02:58.5]}
2... d5 {[%clk 0:03:00]} 3. exd5 {[%clk 0:02:59.4]} 3... Qxd5 {[%clk 0:03:00.5]}
4. d4 {[%clk 0:02:59.9]} 4... cxd4 {[%clk 0:03:01.4]} 5. cxd4 {[%clk 0:03:00.7]}
5... Nc6 {[%clk 0:03:01.9]} 6. Nf3 {[%clk 0:03:00.9]} 6... e5 {[%clk 0:03:02.3]}
7. Nc3 {[%clk 0:03:00.4]} 7... Bb4 {[%clk 0:03:02.5]} 8. Bd2 {[%clk 0:03:01]}
8... Bxc3 {[%clk 0:03:02.7]} 9. Bxc3 {[%clk 0:03:01.9]} 9... e4 {[%clk
0:03:03.2]} 10. Ne5 {[%clk 0:03:02.6]} 10... Nxe5 {[%clk 0:03:03.5]} 11. dxe5
{[%clk 0:03:03.5]} 11... Ne7 {[%clk 0:03:03.9]} 12. Qc2 {[%clk 0:02:57.9]} 12...
O-O {[%clk 0:03:01.6]} 13. Rd1 {[%clk 0:02:50.1]} 13... Qxa2 {[%clk 0:03:00.5]}
14. Bb4 {[%clk 0:02:48]} 14... Nc6 {[%clk 0:02:55.6]} 15. Bxf8 {[%clk 0:02:44]}
15... Kxf8 {[%clk 0:02:55.4]} 16. Qc5+ {[%clk 0:02:43.4]} 16... Kg8 {[%clk
0:02:33]} 17. Qxc6 {[%clk 0:01:43.6]} 17... Bg4 {[%clk 0:02:23.9]} 18. Qc4
{[%clk 0:01:43.6]} 18... Qxb2 {[%clk 0:02:16.2]} 19. Rc1 {[%clk 0:01:32.9]}
19... h5 {[%clk 0:02:02.2]} 20. Qc3 {[%clk 0:01:27.7]} 20... Qb6 {[%clk
0:01:54.4]} 21. Be2 {[%clk 0:01:12.3]} 21... Rc8 {[%clk 0:01:39]} 22. Qd2 {[%clk
0:01:09.4]} 22... Rd8 {[%clk 0:01:32.3]} 23. Qe3 {[%clk 0:01:02.3]} 23... Qa5+
{[%clk 0:00:48.2]} 24. Qc3 {[%clk 0:01:00.4]} 24... Qb6 {[%clk 0:00:13.6]} 25.
Bxg4 {[%clk 0:00:58.2]} 25... hxg4 {[%clk 0:00:14.5]} 26. O-O {[%clk 0:00:57.8]}
26... g6 {[%clk 0:00:13]} 27. Rfd1 {[%clk 0:00:54.6]} 27... Re8 {[%clk
0:00:11.5]} 28. Rd7 {[%clk 0:00:50]} 28... Qe6 {[%clk 0:00:08.1]} 29. Rxb7
{[%clk 0:00:48.9]} 29... Qf5 {[%clk 0:00:07.6]} 30. Rxa7 {[%clk 0:00:45]} 30...
Rxe5 {[%clk 0:00:06.2]} 31. Ra8+ {[%clk 0:00:41.5]} 31... Kg7 {[%clk 0:00:06.1]}
32. Re1 {[%clk 0:00:39.7]} 32... f6 {[%clk 0:00:03.6]} 33. Qc7+ {[%clk
0:00:32.3]} 33... Kh6 {[%clk 0:00:03.6]} 34. Rh8+ {[%clk 0:00:32.3]} 34... Kg5
{[%clk 0:00:03.9]} 35. Qc1+ {[%clk 0:00:31.6]} 35... Qf4 {[%clk 0:00:02.2]} 36.
Qxf4+ {[%clk 0:00:30.5]} 36... Kxf4 {[%clk 0:00:03.1]} 37. g3+ {[%clk
0:00:27.7]} 37... Kf5 {[%clk 0:00:02.6]} 38. Rb8 {[%clk 0:00:26.8]} 38... g5
{[%clk 0:00:01.9]} 39. Rb4 {[%clk 0:00:27]} 39... Re6 {[%clk 0:00:01.5]} 40. Kf1
{[%clk 0:00:26]} 1-0